fUSD/lending_fUSD_20251017
["ID","MTS","AMOUNT","RATE_DAILY","PERIOD"]
[391594931,1760683859745,-805.85,0.00030136,17]
[391594933,1760683859756,-805.85,0.00030136,17]
[391594935,1760683859765,-805.85,0.00030136,17]
[391594936,1760683859775,-805.85,0.00030136,17]
[391594938,1760683859785,-805.85,0.00030136,17]
[391594940,1760683859795,-286.188496,0.00030136,30]
[391594942,1760683859804,-805.85,0.00030136,17]
[391594943,1760683859814,-805.85,0.00030136,17]
[391594945,1760683859824,-500.0,0.00030136,17]
[391594947,1760683859834,-805.85,0.00030136,17]
[391594949,1760683859844,-638.07834322,0.00030136,17]
[391594951,1760683859854,-151.0,0.00030136,30]
[391594953,1760683859864,-805.85,0.00030136,17]
[391594955,1760683859874,-805.85,0.00030136,17]
[391594956,1760683859884,-805.85,0.00030136,17]
[391594958,1760683859894,-286.188496,0.00030136,30]
[391594960,1760683859904,-805.85,0.00030136,17]
[391594962,1760683859914,-805.85,0.00030136,17]
[391594964,1760683859923,-806.06128224,0.00030136,17]
[391594965,1760683859936,-151.0,0.00030136,30]
[391594967,1760683859946,-286.188496,0.00030136,30]
[391594969,1760683859958,-172.690871,0.00030136,30]
[391594971,1760683859968,-151.0,0.00030136,30]
[391594973,1760683859978,-172.690871,0.00030136,30]
[391594975,1760683859987,-286.188496,0.00030136,30]
[391594977,1760683859997,-172.690871,0.00030136,30]
[391594978,1760683860007,-172.690871,0.00030136,30]
[391594980,1760683860016,-279.078103,0.00030136,30]
[391594982,1760683860026,-279.078103,0.00030136,30]
[391594984,1760683860036,-151.0,0.00030136,30]
[391594985,1760683860046,-279.078103,0.00030136,30]
[391594987,1760683860056,-279.078103,0.00030136,30]
[391594989,1760683860066,-151.0,0.00030136,30]
[391594991,1760683860076,-151.0,0.00030136,30]
[391594992,1760683860086,-151.0,0.00030136,30]
[391594993,1760683860096,-151.0,0.00030136,30]
[391594994,1760683860106,-151.0,0.00030136,30]
[391594995,1760683860115,-151.0,0.00030136,30]
[391594996,1760683860125,-151.0,0.00030136,30]
[391594997,1760683860135,-151.0,0.00030136,30]
[391594998,1760683860144,-151.0,0.00030136,30]
[391594999,1760683860155,-151.0,0.00030136,30]
[391595000,1760683860164,-1000.0,0.00030136,120]
[391595001,1760683860174,-297.242366,0.00030136,30]
[391595003,1760683860187,-151.0,0.00030136,30]
[391595005,1760683860198,-151.0,0.00030136,30]
[391595007,1760683860209,-151.0,0.00030136,30]
[391595009,1760683860220,-460.00955,0.00030136,30]
[391595011,1760683860230,-311.327317,0.00030136,30]
[391595012,1760683860241,-460.00955,0.00030136,30]
[391595014,1760683860251,-151.0,0.00030136,30]
[391595017,1760683860262,-311.327317,0.00030136,30]
[391595019,1760683860272,-460.00955,0.00030136,30]
[391595021,1760683860282,-154.59415,0.00030136,30]
[391595023,1760683860292,-155.447817,0.00030136,30]
[391595025,1760683860301,-311.327317,0.00030136,30]
[391595027,1760683860311,-460.00955,0.00030136,30]
[391595029,1760683860320,-311.327317,0.00030136,30]
[391595031,1760683860330,-151.0,0.00030136,30]
[391595033,1760683860340,-307.14806,0.00030136,30]
[391595035,1760683860350,-1947.0,0.00030137,120]
[391595037,1760683860359,-3000.0,0.00030162,7]
[391595039,1760683860369,-2878.95807346,0.00030179,2]
[391595041,1760683860379,-2777.87,0.000302,30]
[391595043,1760683860389,-2784.72,0.000302,2]
[391595045,1760683860399,-5404.2821674,0.00030214,2]
[391595047,1760683860408,-539.93,0.00030217,15]
[391595049,1760683860418,-539.93,0.00030217,15]
[391595051,1760683860428,-2216.0,0.00030236,2]
[391595053,1760683860442,-150.0,0.00030241,120]
[391595055,1760683860451,-500.0,0.00030264,17]
[391595057,1760683860461,-150.0,0.00030266,120]
[391595059,1760683860471,-1000.0,0.00030273,120]
[391595061,1760683860487,-300.0,0.00030305,2]
[391595063,1760683860498,-1425.0,0.00030324,2]
[391595066,1760683860508,-151.0,0.0003033,30]
[391595068,1760683860518,-150.0,0.00030361,120]
[391595070,1760683860529,-150.0,0.00030396,120]
[391595072,1760683860538,-1000.0,0.00030398,2]
[391595074,1760683860548,-26754.78,0.000304,2]
[391595076,1760683860558,-151.0,0.000304,30]
[391595078,1760683860568,-151.0,0.000304,30]
[391595080,1760683860578,-151.0,0.000304,30]
[391595082,1760683860587,-151.0,0.000304,30]
[391595084,1760683860597,-151.0,0.000304,30]
[391595121,1760683860943,-151.0,0.000304,30]
[391595126,1760683861031,-152.590936,0.000304,30]
[391595128,1760683861042,-151.0,0.000304,30]
[391595130,1760683861052,-151.0,0.000304,30]
[391595132,1760683861062,-151.0,0.000304,30]
[391595134,1760683861071,-151.0,0.000304,30]
[391595136,1760683861081,-151.0,0.000304,30]
[391595138,1760683861091,-151.0,0.000304,30]
[391595140,1760683861101,-151.0,0.000304,30]
[391595142,1760683861111,-151.0,0.000304,30]
[391595144,1760683861120,-151.0,0.000304,30]
[391595146,1760683861130,-151.0,0.000304,30]
[391595148,1760683861140,-151.0,0.000304,30]
[391595150,1760683861151,-151.0,0.000304,30]
[391595152,1760683861161,-151.0,0.000304,30]
[391595154,1760683861171,-151.0,0.000304,30]
[391595157,1760683861186,-151.0,0.000304,30]
[391595159,1760683861197,-151.0,0.000304,30]
[391595161,1760683861208,-1000.0,0.0003041,120]
[391595163,1760683861219,-265.904658,0.00030424,2]
[391595165,1760683861229,-1100.0,0.00030436,7]
[391595167,1760683861240,-1425.0,0.00030451,2]
[391595169,1760683861251,-539.93,0.00030491,15]
[391595171,1760683861261,-539.93,0.00030491,15]
[391595173,1760683861272,-150.0,0.00030491,120]
[391595175,1760683861283,-150.0,0.00030506,120]
[391595177,1760683861294,-150.0,0.0003051,120]
[391595179,1760683861305,-1000.0,0.00030515,2]
[391595181,1760683861315,-1000.0,0.00030518,2]
[391595183,1760683861326,-1000.0,0.00030533,2]
[391595185,1760683861336,-1000.0,0.00030544,2]
[391595187,1760683861347,-1000.0,0.00030544,2]
[391595189,1760683861357,-2216.0,0.00030545,2]
[391595192,1760683861367,-1000.0,0.00030547,120]
[391595193,1760683861377,-150.0,0.0003056,120]
[391595195,1760683861387,-150.0,0.00030597,120]
[391595198,1760683861396,-647.99,0.000306,30]
[391595200,1760683861406,-1579.24,0.0003063,120]
[391595202,1760683861416,-1579.24,0.0003063,120]
[391595204,1760683861426,-1579.24,0.0003063,120]
[391595206,1760683861441,-1579.24,0.0003063,120]
[391595208,1760683861452,-1579.24,0.0003063,120]
[391595210,1760683861461,-1579.24,0.0003063,120]
[391595212,1760683861471,-1579.24,0.0003063,120]
[391595214,1760683861481,-1579.24,0.0003063,120]
[391595216,1760683861493,-1579.24,0.0003063,120]
[391595218,1760683861503,-1579.24,0.0003063,120]
[391595220,1760683861513,-1579.24,0.0003063,120]
[391595222,1760683861523,-1579.24,0.0003063,120]
[391595224,1760683861534,-1579.24,0.0003063,120]
[391595226,1760683861544,-1579.24,0.0003063,120]
[391595228,1760683861554,-1579.24,0.0003063,120]
[391595230,1760683861564,-1579.24,0.0003063,120]
[391595232,1760683861575,-1579.24,0.0003063,120]
[391595234,1760683861585,-1579.24,0.0003063,120]
[391595236,1760683861598,-1579.24,0.0003063,120]
[391595238,1760683861608,-1579.24,0.0003063,120]
[391595240,1760683861617,-1579.24,0.0003063,120]
[391595242,1760683861627,-1579.24,0.0003063,120]
[391595244,1760683861637,-1579.24,0.0003063,120]
[391595246,1760683861648,-1579.42020398,0.0003063,120]
[391595248,1760683861663,-1000.0,0.00030645,2]
[391595251,1760683861673,-1000.0,0.0003065,2]
[391595253,1760683861688,-150.0,0.00030653,120]
[391595255,1760683861699,-623.41,0.00030664,17]
[391595257,1760683861709,-500.0,0.00030664,17]
[391595259,1760683861719,-1967.59,0.00030664,17]
[391595261,1760683861731,-500.0,0.00030664,17]
[391595263,1760683861741,-578.98,0.00030664,17]
[391595265,1760683861751,-763.64,0.00030664,17]
[391595267,1760683861761,-500.0,0.00030664,17]
[391595269,1760683861771,-2980.28,0.00030664,17]
[391595271,1760683861782,-500.0,0.00030664,17]
[391595273,1760683861792,-541.04,0.00030664,17]
[391595275,1760683861802,-3296.69,0.00030664,17]
[391595277,1760683861811,-1226.28,0.00030664,17]
[391595279,1760683861820,-2013.45,0.00030664,17]
[391595281,1760683861830,-644.81,0.00030664,17]
[391595283,1760683861840,-500.0,0.00030664,17]
[391595285,1760683861850,-500.0,0.00030664,17]
[391595287,1760683861860,-1000.0,0.00030666,30]
[391595289,1760683861870,-1000.0,0.00030666,30]
[391595291,1760683861880,-1271.83,0.00030677,17]
[391595293,1760683861890,-500.0,0.00030677,17]
[391595295,1760683861899,-500.0,0.00030677,17]
[391595297,1760683861909,-500.0,0.00030677,17]
[391595299,1760683861919,-1001.84,0.00030677,17]
[391595301,1760683861929,-1907.03,0.00030677,17]
[391595303,1760683861943,-500.0,0.00030677,17]
[391595305,1760683861953,-500.0,0.00030677,17]
[391595307,1760683861963,-500.0,0.00030677,17]
[391595310,1760683861973,-3692.17,0.00030677,17]
[391595311,1760683861983,-3288.14,0.00030677,17]
[391595314,1760683861993,-4471.28,0.00030677,17]
[391595316,1760683862002,-1974.21,0.00030677,17]
[391595318,1760683862012,-1128.42,0.00030677,17]
[391595320,1760683862022,-500.0,0.00030677,17]
[391595322,1760683862032,-1206.03,0.00030677,17]
[391595323,1760683862042,-1353.39,0.00030677,17]
[391595324,1760683862052,-500.0,0.00030677,17]
[391595325,1760683862061,-500.0,0.00030677,17]
[391595326,1760683862070,-500.0,0.00030677,17]
[391595327,1760683862079,-1662.49,0.00030677,17]
[391595328,1760683862088,-1528.63,0.00030677,17]
[391595329,1760683862097,-500.0,0.00030677,17]
[391595330,1760683862108,-500.0,0.00030677,17]
[391595332,1760683862118,-583.15,0.00030677,17]
[391595334,1760683862127,-500.0,0.00030677,17]
[391595335,1760683862137,-895.42,0.00030684,17]
[391595336,1760683862147,-1000.0,0.00030684,120]
[391595337,1760683862157,-83121.01,0.00030685,30]
[391595338,1760683862168,-564.47264132,0.00030685,2]
[391595339,1760683862179,-500.0,0.00030686,17]
[391595340,1760683862197,-2777.87,0.000307,30]
[391595341,1760683862207,-2784.72,0.000307,2]
[391595342,1760683862217,-167.69861685,0.000307,120]
[391595343,1760683862228,-382.7,0.00030708,30]
[391595344,1760683862239,-1200.0,0.0003071,7]
[391595345,1760683862249,-2000.0,0.00030724,3]
[391595346,1760683862258,-2000.0,0.00030724,3]
[391595347,1760683862268,-150.0,0.00030726,120]
[391595348,1760683862278,-500.0,0.00030727,12]
[391595349,1760683862288,-150.0,0.00030734,120]
[391595350,1760683862298,-150.0,0.00030737,30]
[391595351,1760683862308,-1013.80639936,0.00030737,30]
[391595352,1760683862317,-150.0,0.00030737,30]
[391595353,1760683862328,-974.12197541,0.00030737,30]
[391595354,1760683862338,-150.0,0.00030737,30]
[391595355,1760683862348,-1438.38882785,0.00030737,30]
[391595356,1760683862360,-2000.0,0.00030749,120]
[391595357,1760683862370,-666.87,0.00030764,17]
[391595358,1760683862380,-500.0,0.00030764,17]
[391595359,1760683862390,-539.93,0.00030765,15]
[391595360,1760683862400,-539.93,0.00030765,15]
[391595361,1760683862410,-500.0,0.00030775,17]
[391595362,1760683862420,-500.0,0.00030775,17]
[391595363,1760683862429,-500.0,0.00030775,17]
[391595364,1760683862445,-838.67,0.00030775,17]
[391595365,1760683862455,-3394.02,0.00030775,17]
[391595366,1760683862464,-500.0,0.00030775,17]
[391595367,1760683862474,-500.0,0.00030775,17]
[391595368,1760683862484,-500.0,0.00030775,17]
[391595369,1760683862494,-500.0,0.00030775,17]
[391595370,1760683862503,-1140.67,0.00030775,17]
[391595371,1760683862513,-500.0,0.00030775,17]
[391595372,1760683862522,-500.0,0.00030775,17]
[391595373,1760683862532,-500.0,0.00030775,17]
[391595375,1760683862541,-500.0,0.00030775,17]
[391595377,1760683862551,-500.0,0.00030775,17]
[391595378,1760683862560,-623.41,0.00030776,17]
[391595380,1760683862570,-1967.59,0.00030776,17]
[391595382,1760683862579,-500.0,0.00030776,17]
[391595384,1760683862589,-578.98,0.00030776,17]
[391595386,1760683862599,-763.64,0.00030776,17]
[391595388,1760683862608,-500.0,0.00030776,17]
[391595389,1760683862617,-2980.28,0.00030776,17]
[391595390,1760683862626,-500.0,0.00030776,17]
[391595391,1760683862636,-541.04,0.00030776,17]
[391595392,1760683862648,-3296.69,0.00030776,17]
[391595393,1760683862661,-1226.28,0.00030776,17]
[391595394,1760683862671,-2013.45,0.00030776,17]
[391595395,1760683862680,-500.0,0.00030776,17]
[391595396,1760683862695,-500.0,0.00030776,17]
[391595397,1760683862704,-1060.72453554,0.00030777,2]
[391595398,1760683862714,-1000.0,0.00030781,11]
[391595399,1760683862724,-1000.0,0.00030781,11]
[391595400,1760683862733,-1000.0,0.00030781,11]
[391595401,1760683862743,-1000.0,0.00030781,11]
[391595402,1760683862753,-1000.0,0.00030781,11]
[391595403,1760683862762,-1122.52660225,0.00030781,11]
[391595404,1760683862771,-1000.0,0.00030781,11]
[391595405,1760683862780,-1000.0,0.00030781,11]
[391595406,1760683862789,-1000.0,0.00030781,11]
[391595407,1760683862798,-1000.0,0.00030781,11]
[391595408,1760683862808,-1000.0,0.00030781,11]
[391595409,1760683862817,-1000.0,0.00030781,11]
[391595410,1760683862826,-1000.0,0.00030781,11]
[391595411,1760683862835,-1000.0,0.00030781,11]
[391595412,1760683862845,-1000.0,0.00030783,2]
[391595413,1760683862854,-895.42,0.00030785,17]
[391595414,1760683862863,-895.42,0.00030789,17]
[391595415,1760683862872,-895.42,0.00030789,17]
[391595416,1760683862882,-895.42,0.00030789,17]
[391595417,1760683862891,-895.42,0.00030789,17]
[391595418,1760683862900,-895.42,0.00030789,17]
[391595419,1760683862910,-895.47735828,0.00030789,17]
[391595420,1760683862919,-500.0,0.00030789,17]
[391595421,1760683862929,-500.0,0.000308,2]
[391595422,1760683862942,-250.0,0.000308,30]
[391595423,1760683862954,-2056.583548,0.000308,120]
[391595424,1760683862964,-1000.0,0.00030812,2]
[391595425,1760683862973,-500.0,0.00030821,17]
[391595426,1760683862982,-500.0,0.00030821,17]
[391595427,1760683862993,-500.0,0.00030821,17]
[391595428,1760683863002,-1000.0,0.00030821,120]
[391595429,1760683863012,-1271.83,0.00030822,17]
[391595430,1760683863022,-500.0,0.00030822,17]
[391595431,1760683863032,-460.16,0.00030822,17]
[391595432,1760683863041,-500.0,0.00030822,17]
[391595433,1760683863051,-1001.84,0.00030822,17]
[391595434,1760683863061,-1907.03,0.00030822,17]
[391595435,1760683863071,-500.0,0.00030822,17]
[391595436,1760683863081,-500.0,0.00030822,17]
[391595437,1760683863090,-3692.17,0.00030822,17]
[391595438,1760683863099,-3288.14,0.00030822,17]
[391595439,1760683863108,-4471.28,0.00030822,17]
[391595440,1760683863118,-1974.21,0.00030822,17]
[391595441,1760683863127,-1128.42,0.00030822,17]
[391595442,1760683863137,-457.32,0.00030822,17]
[391595443,1760683863146,-1206.03,0.00030822,17]
[391595444,1760683863156,-1353.39,0.00030822,17]
[391595445,1760683863165,-500.0,0.00030822,17]
[391595446,1760683863175,-500.0,0.00030822,17]
[391595447,1760683863188,-506.5,0.00030822,17]
[391595448,1760683863198,-1662.49,0.00030822,17]
[391595449,1760683863207,-1528.63,0.00030822,17]
[391595450,1760683863217,-500.0,0.00030822,17]
[391595451,1760683863226,-335.8,0.00030822,17]
[391595452,1760683863236,-583.15,0.00030822,17]
[391595453,1760683863246,-500.0,0.00030822,17]
[391595454,1760683863255,-198.21812912,0.00030824,12]
[391595455,1760683863264,-2000.0,0.00030829,3]
[391595456,1760683863274,-1271.83,0.00030832,17]
[391595457,1760683863283,-500.0,0.00030832,17]
[391595458,1760683863293,-500.0,0.00030832,17]
[391595459,1760683863302,-1001.84,0.00030832,17]
[391595460,1760683863311,-1907.03,0.00030832,17]
[391595461,1760683863321,-377.99,0.00030832,17]
[391595462,1760683863330,-500.0,0.00030832,17]
[391595463,1760683863340,-3692.17,0.00030832,17]
[391595464,1760683863350,-3288.14,0.00030832,17]
[391595465,1760683863359,-4471.28,0.00030832,17]
[391595466,1760683863368,-1974.21,0.00030832,17]
[391595467,1760683863378,-1128.42,0.00030832,17]
[391595468,1760683863387,-1206.03,0.00030832,17]
[391595469,1760683863396,-1353.39,0.00030832,17]
[391595470,1760683863405,-500.0,0.00030832,17]
[391595471,1760683863415,-500.0,0.00030832,17]
[391595472,1760683863424,-1662.49,0.00030832,17]
[391595473,1760683863436,-1528.63,0.00030832,17]
[391595474,1760683863446,-500.0,0.00030832,17]
[391595475,1760683863455,-583.15,0.00030832,17]
[391595476,1760683863465,-500.0,0.00030832,17]
[391595477,1760683863556,-150.0,0.00030834,120]
[391595478,1760683863566,-1271.83,0.00030835,17]
[391595479,1760683863575,-500.0,0.00030835,17]
[391595480,1760683863584,-1001.84,0.00030835,17]
[391595481,1760683863593,-1907.03,0.00030835,17]
[391595482,1760683863602,-500.0,0.00030835,17]
[391595483,1760683863611,-3692.17,0.00030835,17]
[391595484,1760683863621,-3288.14,0.00030835,17]
[391595485,1760683863630,-4471.28,0.00030835,17]
[391595486,1760683863639,-1974.21,0.00030835,17]
[391595487,1760683863648,-1128.42,0.00030835,17]
[391595488,1760683863663,-1206.03,0.00030835,17]
[391595489,1760683863672,-1353.39,0.00030835,17]
[391595490,1760683863682,-500.0,0.00030835,17]
[391595491,1760683863695,-500.0,0.00030835,17]
[391595492,1760683863705,-1662.49,0.00030835,17]
[391595493,1760683863714,-1528.63,0.00030835,17]
[391595494,1760683863723,-500.0,0.00030835,17]
[391595495,1760683863735,-583.15,0.00030835,17]
[391595496,1760683863744,-500.0,0.00030835,17]
[391595497,1760683863753,-150.0,0.00030835,120]
[391595498,1760683863762,-2565.63401561,0.0003084,2]
[391595499,1760683863771,-666.87,0.00030841,17]
[391595500,1760683863780,-500.0,0.00030841,17]
[391595501,1760683863790,-623.41,0.00030841,17]
[391595502,1760683863799,-1967.59,0.00030841,17]
[391595503,1760683863808,-500.0,0.00030841,17]
[391595504,1760683863817,-578.98,0.00030841,17]
[391595505,1760683863826,-763.64,0.00030841,17]
[391595506,1760683863835,-500.0,0.00030841,17]
[391595507,1760683863845,-2980.28,0.00030841,17]
[391595508,1760683863854,-500.0,0.00030841,17]
[391595509,1760683863863,-541.04,0.00030841,17]
[391595510,1760683863873,-3296.69,0.00030841,17]
[391595511,1760683863882,-1226.28,0.00030841,17]
[391595512,1760683863891,-2013.45,0.00030841,17]
[391595513,1760683863900,-500.0,0.00030841,17]
[391595514,1760683863910,-500.0,0.00030841,17]
[391595515,1760683863919,-1000.0,0.00030841,2]
[391595516,1760683863928,-6184.88,0.00030844,9]
[391595517,1760683863940,-42595.16,0.00030844,9]
[391595518,1760683863949,-11128.31,0.00030844,9]
[391595519,1760683863958,-623.41,0.00030845,17]
[391595520,1760683863967,-623.41,0.00030845,17]
[391595521,1760683863976,-1967.59,0.00030845,17]
[391595522,1760683863985,-1967.59,0.00030845,17]
[391595523,1760683863994,-500.0,0.00030845,17]
[391595524,1760683864004,-500.0,0.00030845,17]
[391595525,1760683864013,-578.98,0.00030845,17]
[391595526,1760683864021,-578.98,0.00030845,17]
[391595527,1760683864030,-763.64,0.00030845,17]
[391595528,1760683864039,-763.64,0.00030845,17]
[391595529,1760683864048,-500.0,0.00030845,17]
[391595530,1760683864057,-615.54,0.00030845,17]
[391595531,1760683864066,-2980.28,0.00030845,17]
[391595532,1760683864075,-2980.28,0.00030845,17]
[391595533,1760683864084,-500.0,0.00030845,17]
[391595534,1760683864092,-500.0,0.00030845,17]
[391595535,1760683864102,-541.04,0.00030845,17]
[391595536,1760683864111,-541.04,0.00030845,17]
[391595537,1760683864120,-3296.69,0.00030845,17]
[391595538,1760683864129,-3296.69,0.00030845,17]
[391595539,1760683864138,-1226.28,0.00030845,17]
[391595540,1760683864147,-1226.28,0.00030845,17]
[391595541,1760683864156,-2013.45,0.00030845,17]
[391595542,1760683864165,-2013.45,0.00030845,17]
[391595543,1760683864175,-500.0,0.00030845,17]
[391595544,1760683864188,-500.0,0.00030845,17]
[391595545,1760683864197,-500.0,0.00030845,17]
[391595546,1760683864206,-500.0,0.00030845,17]
[391595547,1760683864215,-500.0,0.0003085,17]
[391595548,1760683864224,-500.0,0.0003085,17]
[391595549,1760683864234,-500.0,0.0003085,17]
[391595550,1760683864243,-674.21,0.0003085,17]
[391595551,1760683864252,-500.0,0.0003085,17]
[391595552,1760683864261,-961.29,0.0003085,17]
[391595553,1760683864271,-500.0,0.0003085,17]
[391595554,1760683864280,-500.0,0.0003085,17]
[391595555,1760683864290,-500.0,0.0003085,17]
[391595556,1760683864299,-1381.81,0.0003085,17]
[391595557,1760683864309,-500.0,0.0003085,17]
[391595558,1760683864318,-500.0,0.0003085,17]
[391595559,1760683864327,-603.4,0.0003085,17]
[391595560,1760683864336,-614.27,0.0003085,17]
[391595561,1760683864345,-500.0,0.0003085,17]
[391595562,1760683864354,-500.0,0.0003085,17]
[391595563,1760683864363,-833.6,0.0003085,17]
[391595564,1760683864373,-2569.27,0.0003085,17]
[391595565,1760683864382,-537.04,0.0003085,17]
[391595566,1760683864391,-500.0,0.00030851,2]
[391595567,1760683864400,-666.87,0.00030851,17]
[391595568,1760683864409,-500.0,0.00030851,17]
[391595569,1760683864419,-1271.83,0.00030851,17]
[391595570,1760683864428,-500.0,0.00030851,17]
[391595571,1760683864441,-623.41,0.00030851,17]
[391595572,1760683864450,-623.41,0.00030851,17]
[391595573,1760683864459,-1001.84,0.00030851,17]
[391595574,1760683864468,-1967.59,0.00030851,17]
[391595575,1760683864477,-1967.59,0.00030851,17]
[391595576,1760683864486,-1907.03,0.00030851,17]
[391595577,1760683864495,-500.0,0.00030851,17]
[391595578,1760683864504,-500.0,0.00030851,17]
[391595579,1760683864513,-578.98,0.00030851,17]
[391595580,1760683864522,-578.98,0.00030851,17]
[391595581,1760683864531,-763.64,0.00030851,17]
[391595582,1760683864540,-763.64,0.00030851,17]
[391595583,1760683864549,-500.0,0.00030851,17]
[391595584,1760683864558,-2980.28,0.00030851,17]
[391595585,1760683864568,-2980.28,0.00030851,17]
[391595586,1760683864577,-500.0,0.00030851,17]
[391595587,1760683864586,-500.0,0.00030851,17]
[391595588,1760683864596,-541.04,0.00030851,17]
[391595589,1760683864605,-541.04,0.00030851,17]
[391595590,1760683864614,-3296.69,0.00030851,17]
[391595591,1760683864623,-3296.69,0.00030851,17]
[391595592,1760683864632,-1226.28,0.00030851,17]
[391595593,1760683864642,-1226.28,0.00030851,17]
[391595594,1760683864653,-2013.45,0.00030851,17]
[391595595,1760683864665,-2013.45,0.00030851,17]
[391595596,1760683864675,-500.0,0.00030851,17]
[391595597,1760683864687,-500.0,0.00030851,17]
[391595598,1760683864697,-500.0,0.00030851,17]
[391595599,1760683864706,-500.0,0.00030851,17]
[391595600,1760683864716,-3692.17,0.00030851,17]
[391595601,1760683864725,-3288.14,0.00030851,17]
[391595602,1760683864734,-4471.28,0.00030851,17]
[391595603,1760683864744,-1974.21,0.00030851,17]
[391595604,1760683864753,-1128.42,0.00030851,17]
[391595605,1760683864762,-1206.03,0.00030851,17]
[391595606,1760683864772,-1353.39,0.00030851,17]
[391595607,1760683864781,-500.0,0.00030851,17]
[391595608,1760683864791,-500.0,0.00030851,17]
[391595609,1760683864801,-1662.49,0.00030851,17]
[391595610,1760683864811,-1528.63,0.00030851,17]
[391595611,1760683864821,-500.0,0.00030851,17]
[391595612,1760683864830,-583.15,0.00030851,17]
[391595613,1760683864839,-500.0,0.00030851,17]
[391595614,1760683864849,-2216.0,0.00030853,2]
[391595615,1760683864859,-836.67861893,0.00030853,2]
[391595616,1760683864869,-500.0,0.00030855,2]
[391595617,1760683864879,-500.0,0.00030855,2]
[391595618,1760683864889,-666.87,0.00030855,17]
[391595619,1760683864898,-666.87,0.00030855,17]
[391595620,1760683864907,-500.0,0.00030855,17]
[391595621,1760683864917,-500.0,0.00030855,17]
[391595622,1760683864926,-500.0,0.0003086,17]
[391595623,1760683864937,-838.67,0.0003086,17]
[391595624,1760683864946,-3394.02,0.0003086,17]
[391595625,1760683864957,-500.0,0.0003086,17]
[391595626,1760683864966,-500.0,0.0003086,17]
[391595627,1760683864976,-500.0,0.0003086,17]
[391595628,1760683864985,-500.0,0.0003086,17]
[391595629,1760683864994,-1140.67,0.0003086,17]
[391595630,1760683865004,-500.0,0.0003086,17]
[391595631,1760683865013,-500.0,0.0003086,17]
[391595632,1760683865022,-500.0,0.0003086,17]
[391595633,1760683865032,-500.0,0.0003086,17]
[391595634,1760683865041,-500.0,0.0003086,17]
[391595635,1760683865051,-623.41,0.00030861,17]
[391595636,1760683865060,-1967.59,0.00030861,17]
[391595637,1760683865070,-303.78,0.00030861,17]
[391595638,1760683865079,-578.98,0.00030861,17]
[391595639,1760683865088,-763.64,0.00030861,17]
[391595640,1760683865097,-2980.28,0.00030861,17]
[391595641,1760683865106,-500.0,0.00030861,17]
[391595642,1760683865115,-541.04,0.00030861,17]
[391595643,1760683865125,-3296.69,0.00030861,17]
[391595644,1760683865134,-1226.28,0.00030861,17]
[391595645,1760683865143,-2013.45,0.00030861,17]
[391595646,1760683865152,-500.0,0.00030861,17]
[391595647,1760683865161,-500.0,0.00030861,17]
[391595648,1760683865170,-278.90402981,0.00030865,2]